bitfinex-derivatives/quotes_SOLF0:USTF0_20251101
["timestamp","ask_amount","ask_price","bid_price","bid_amount"]
[1762015131327,2.72,186.96,186.85,11.3582]
[1762015134930,2.72,186.96,186.86,4.8179]
[1762015135132,2.67,186.99,186.86,3.22154285]
[1762015138734,2.67,186.99,186.85,6.54]
[1762015139036,2.67,186.99,186.82,3.22154285]
[1762015139433,2.67,186.99,186.81,6.22]
[1762015139627,2.67,186.99,186.83,4.8188]
[1762015139823,2.67,186.95,186.81,6.22]
[1762015143745,2.67,186.95,186.83,3.22154285]
[1762015143946,2.67,186.95,186.86,3.22154285]
[1762015144336,2.67,186.95,186.86,31.88154285]
[1762015144533,2.67,186.95,186.86,28.66]
[1762015145039,2.67,186.95,186.81,4.8191]
[1762015145351,2.67,186.95,186.82,59.28]
[1762015145747,2.67,187.02,186.87,3.22154285]
[1762015146048,3.22154285,187.0,186.84,3.22154285]
[1762015146243,2.67,186.99,186.84,3.22154285]
[1762015146952,2.67,186.99,186.87,4.8176]
[1762015150745,2.67,186.99,186.89,4.8172]
[1762015169762,2.67,186.99,186.89,76.5772]
[1762015179674,2.67,186.99,186.91,4.8168]
[1762015189182,2.67,186.99,186.9,3.22154285]
[1762015190880,2.67,186.99,186.9,8.03834285]
[1762015193275,2.67,186.99,186.92,2.06040753]
[1762015195181,2.68,187.05,186.92,2.06040753]
[1762015195778,2.68,187.05,186.93,1.96]
[1762015197682,2.06040753,187.03,186.89,4.8172]
[1762015197886,2.68,187.02,186.9,4.58]
[1762015200597,2.68,187.02,186.9,9.3968]
[1762015201896,2.68,187.02,186.92,2.06040753]
[1762015204298,2.68,187.02,186.91,4.8166]
[1762015204490,2.68,187.02,186.92,2.06040753]
[1762015205699,2.68,187.02,186.91,4.8166]
[1762015210394,52.4,187.01,186.69,5.358]
[1762015210594,16.07,186.94,186.63,9.34319449]
[1762015210791,2.06040753,186.65,186.63,9.34319449]
[1762015211188,16.07,186.77,186.63,9.34319449]
[1762015211497,16.07,186.8,186.63,9.34319449]
[1762015211697,2.06040753,186.67,186.63,9.34319449]
[1762015211893,16.07,186.8,186.63,9.34319449]
[1762015212092,2.06040753,186.67,186.63,9.34319449]
[1762015212798,2.06040753,186.68,186.63,9.34319449]
[1762015213100,2.06040753,186.65,186.63,9.34319449]
[1762015213398,2.06040753,186.72,186.63,9.34319449]
[1762015214404,2.06040753,186.69,186.63,9.34319449]
[1762015214596,2.06040753,186.7,186.63,9.34319449]
[1762015215803,2.06040753,186.74,186.63,9.34319449]
[1762015222313,15.77267301,186.75,186.63,9.34319449]
[1762015222515,2.06040753,186.75,186.63,9.34319449]
[1762015225213,18.49096608,186.75,186.63,9.34319449]
[1762015228922,16.43055855,186.75,186.63,9.34319449]
[1762015229116,16.07,186.77,186.63,9.34319449]
[1762015230220,32.32532515,186.77,186.63,9.34319449]
[1762015234227,2.06040753,186.72,186.63,9.34319449]
[1762015235835,2.06040753,186.69,186.63,9.34319449]
[1762015236925,2.06040753,186.66,186.63,9.34319449]
[1762015244332,2.06040753,186.65,186.63,9.34319449]
[1762015244832,16.07,186.76,186.63,9.34319449]
[1762015245327,2.06040753,186.7,186.63,9.34319449]
[1762015246834,16.07,186.76,186.63,9.34319449]
[1762015247034,2.06040753,186.72,186.63,9.34319449]
[1762015253332,3.23184617,186.73,186.63,9.34319449]
[1762015265151,3.23184617,186.7,186.63,9.34319449]
[1762015269855,3.23184617,186.66,186.46,3.23184617]
[1762015270051,3.23184617,186.62,186.46,3.23184617]
[1762015270258,3.23184617,186.62,186.47,1.5]
[1762015270960,2.67,186.64,186.47,1.5]
[1762015272154,5.90184617,186.62,186.47,1.5]
[1762015272561,2.67,186.61,186.47,1.5]
[1762015273661,3.23184617,186.58,186.47,1.5]
[1762015276858,5.90184617,186.58,186.47,1.5]
[1762015280964,2.71,186.57,186.47,1.5]
[1762015286170,3.23184617,186.58,186.47,1.5]
[1762015286570,5.94184617,186.58,186.47,1.5]
[1762015289975,2.71,186.57,186.47,1.5]
[1762015298380,5.96184617,186.6,186.47,1.5]
[1762015299982,5.96184617,186.6,186.49,1.51]
[1762015301981,5.96184617,186.6,186.5,1.51]
[1762015302283,2.73,186.59,186.5,1.51]
[1762015313282,2.07065511,186.58,186.5,1.51]
[1762015313484,4.80065511,186.58,186.5,1.51]
[1762015313790,2.73,186.58,186.5,1.51]
[1762015313990,4.80065511,186.58,186.5,1.51]
[1762015316492,2.73,186.57,186.5,1.51]
[1762015319093,2.73,186.54,186.45,1.51]
[1762015321886,2.73,186.54,186.46,4.8283]
[1762015322090,2.73,186.58,186.47,1.51]
[1762015322993,2.73,186.58,186.48,1.51]
[1762015326591,2.73,186.58,186.49,4.8274]
[1762015326792,2.73,186.58,186.5,1.51]
[1762015330391,4.79065511,186.61,186.51,1.51]
[1762015330596,2.72,186.61,186.52,1.51]
[1762015332486,2.72,186.6,186.52,1.51]
[1762015340494,4.79065511,186.6,186.52,1.51]
[1762015340798,2.72,186.59,186.52,1.51]
[1762015341200,2.72,186.59,186.49,1.51]
[1762015341406,2.72,186.59,186.5,1.51]
[1762015344103,2.72,186.59,186.52,1.51]
[1762015363728,2.72,186.59,186.52,6.3366]
[1762015363927,2.72,186.59,186.53,1.5]
[1762015364326,2.72,186.59,186.54,1.5]
[1762015365627,2.72,186.59,186.51,1.5]
[1762015365823,2.72,186.59,186.51,78.1]
[1762015370631,2.72,186.59,186.52,1.5]
[1762015372830,2.72,186.59,186.53,76.6]
[1762015376032,2.72,186.59,186.53,78.1]
[1762015380434,2.72,186.59,186.54,1.5]
[1762015381737,2.72,186.59,186.53,76.6]
[1762015385845,2.72,186.59,186.53,78.1]
[1762015386044,2.72,186.59,186.54,1.5]
[1762015386247,2.9,186.68,186.56,1.5]
[1762015394651,2.9,186.68,186.48,3.2332383]
[1762015394851,2.9,186.68,186.5,1.51]
[1762015395952,2.9,186.68,186.5,6.3373]
[1762015396252,2.9,186.68,186.51,1.51]
[1762015397753,2.91,186.65,186.51,1.51]
[1762015398051,2.91,186.65,186.53,1.51]
[1762015403565,2.91,186.65,186.5,1.51]
[1762015412376,2.79,186.62,186.5,1.51]
[1762015428892,2.79,186.62,186.51,1.51]
[1762015435299,2.79,186.62,186.52,1.51]
[1762015441395,2.91,186.66,186.55,1.51]
[1762015442596,2.91,186.66,186.58,1.51]
[1762015455112,2.91,186.66,186.59,1.51]
[1762015457726,2.76,186.7,186.59,1.51]
[1762015461029,2.76,186.7,186.6,1.51]
[1762015466732,2.76,186.7,186.62,1.51]
[1762015466928,2.7,186.79,186.69,1.51]
[1762015473037,2.7,186.76,186.69,1.51]
[1762015473243,2.7,186.84,186.69,1.51]
[1762015473535,2.7,186.8,186.69,1.51]
[1762015476636,2.7,186.8,186.7,1.5]
[1762015483944,2.7,186.8,186.72,2.06941883]
[1762015484244,2.7,186.8,186.73,1.5]
[1762015495451,2.7,186.8,186.69,1.5]
[1762015495748,2.7,186.8,186.7,1.5]
[1762015500354,2.7,186.8,186.67,6.3229]
[1762015500552,2.7,186.8,186.69,1.5]
[1762015502158,2.7,186.8,186.7,1.5]
[1762015503758,2.7,186.8,186.71,1.5]
[1762015506258,2.7,186.8,186.72,1.5]
[1762015506560,2.82,186.9,186.72,1.5]
[1762015508059,2.82,186.9,186.75,1.5]
[1762015510862,2.74,186.88,186.75,1.5]
[1762015513763,2.74,186.84,186.74,41.28]
[1762015515065,2.74,186.84,186.72,1.5]
[1762015515263,2.74,186.84,186.73,1.5]
[1762015519259,2.74,186.84,186.73,10.56]
[1762015519762,2.74,186.84,186.73,9.06]
[1762015519959,2.74,186.84,186.74,1.5]
[1762015528573,2.95,186.9,186.74,1.5]
[1762015528771,2.95,186.9,186.76,1.5]
[1762015529978,2.95,186.9,186.77,1.5]
[1762015532582,2.95,186.86,186.74,1.5]
[1762015532788,2.95,186.86,186.67,0.93163961]
[1762015532989,2.95,186.82,186.71,1.5]
[1762015541394,2.95,186.82,186.68,72.36]
[1762015541697,2.95,186.82,186.69,1.5]
[1762015561206,2.95,186.82,186.72,1.5]
[1762015562114,2.0653003,186.87,186.75,1.5]
[1762015562306,2.79,186.86,186.75,1.5]
[1762015565818,2.79,186.86,186.77,3.5653003]
[1762015567026,2.79,186.86,186.78,1.5]
[1762015577919,2.79,186.86,186.81,1.5]
[1762015578624,2.79,186.86,186.84,1.5]
[1762015579330,2.7,186.92,186.84,1.5]
[1762015582837,2.7,186.92,186.83,2.0653003]
[1762015584235,2.7,186.92,186.83,3.5653003]
[1762015586636,2.7,186.92,186.83,1.5]
[1762015596053,2.7,186.92,186.86,1.5]
[1762015599260,2.76,186.98,186.89,1.5]
[1762015601853,2.76,186.98,186.91,2.0653003]
[1762015602360,2.76,186.98,186.89,1.5]
[1762015605267,2.76,186.98,186.92,1.5]
[1762015611269,2.76,187.0,186.92,1.5]
[1762015623476,2.76,187.06,186.92,1.5]
[1762015623968,2.76,187.06,186.93,1.5]
[1762015630182,2.83,187.03,186.93,1.5]
[1762015637183,2.83,187.02,186.93,1.5]
[1762015639281,2.83,186.99,186.93,1.5]
[1762015639484,2.83,186.99,186.91,1.5]
[1762015642582,2.83,186.99,186.89,76.12]
[1762015643091,2.83,186.99,186.88,1.5]
[1762015643485,2.83,186.99,186.85,1.5]
[1762015643991,2.8,186.96,186.85,1.5]
[1762015649890,2.8,186.96,186.86,3.21958755]
[1762015650097,2.8,186.96,186.87,1.5]
[1762015651194,2.8,186.96,186.85,77.62]
[1762015651387,2.8,186.96,186.86,1.5]
[1762015655698,2.8,186.96,186.84,77.62]
[1762015655896,2.8,186.96,186.85,1.5]
[1762015657201,2.8,186.96,186.87,1.5]
[1762015661004,2.8,186.96,186.84,1.5]
[1762015661205,2.8,186.96,186.86,1.5]
[1762015662706,2.8,186.96,186.83,8.37958755]
[1762015662907,2.8,186.96,186.84,1.5]
[1762015663210,3.21958755,186.96,186.81,1.5]
[1762015663404,2.92,186.95,186.82,1.5]
[1762015663598,2.92,186.95,186.79,1.5]
[1762015663802,2.92,186.95,186.8,1.5]
[1762015664505,2.92,186.95,186.82,3.21958755]
[1762015664811,2.92,186.95,186.86,1.5]
[1762015672423,2.92,186.95,186.87,3.21958755]
[1762015672614,2.92,186.95,186.88,1.5]
[1762015678321,2.92,186.95,186.9,1.5]
[1762015679424,2.92,186.95,186.92,1.5]
[1762015680328,2.92,186.95,186.91,2.06094111]
[1762015681829,2.92,186.95,186.88,3.56094111]
[1762015682235,2.92,186.95,186.85,2.06094111]
[1762015683425,2.92,186.95,186.82,2.06094111]
[1762015683630,2.92,186.92,186.81,3.56094111]
[1762015684129,2.92,186.89,186.77,1.5]
[1762015684328,2.92,186.89,186.78,2.06094111]
[1762015684519,2.92,186.89,186.78,3.56094111]
[1762015688232,2.92,186.89,186.78,1.5]
[1762015688832,2.71,186.86,186.76,2.06094111]
[1762015689032,2.71,186.86,186.77,1.5]
[1762015691436,2.71,186.86,186.83,1.5]
[1762015692837,2.71,186.86,186.82,2.06094111]
[1762015693235,2.71,186.86,186.79,3.56094111]
[1762015693926,2.71,186.86,186.76,2.06094111]
[1762015694130,2.71,186.86,186.77,1.5]
[1762015694430,2.71,186.86,186.79,2.06094111]
[1762015697539,2.71,186.86,186.77,1.5]
[1762015697540,2.71,186.86,186.76,2.06094111]
[1762015698141,2.71,186.86,186.76,3.56094111]
[1762015700142,2.71,186.86,186.76,2.06094111]
[1762015701244,2.71,186.86,186.76,3.56094111]
[1762015705446,2.71,186.86,186.77,1.5]
[1762015705652,2.71,186.86,186.8,1.5]
[1762015706056,2.71,186.86,186.71,1.5]
[1762015706364,2.71,186.86,186.78,2.06094111]
[1762015707660,2.71,186.86,186.77,1.5]
[1762015715265,2.95,186.85,186.77,1.5]
[1762015721462,2.7,186.84,186.77,1.5]
[1762015721657,2.7,186.84,186.7,4.8221]
[1762015721863,2.06094111,186.83,186.73,1.5]
[1762015722062,2.7,186.82,186.73,1.5]
[1762015726071,2.7,186.81,186.73,1.5]
[1762015726580,2.7,186.79,186.73,1.5]
[1762015730982,2.7,186.79,186.69,1.5]
[1762015737193,2.7,186.78,186.69,1.5]
[1762015737590,2.7,186.77,186.69,1.5]
[1762015741099,2.7,186.76,186.69,1.5]
[1762015743789,2.7,186.76,186.66,6.46415779]
[1762015743991,2.7,186.75,186.66,6.46415779]
[1762015744295,2.7,186.75,186.66,1.5]
[1762015744685,2.7,186.75,186.63,15.23950346]
[1762015744686,3.22750025,186.7,186.63,14.30735228]
[1762015744890,2.7,186.66,186.63,9.34319449]
[1762015745889,2.7,186.66,186.58,1.5]
[1762015747196,2.89,186.62,186.55,1.51]
[1762015747402,2.89,186.62,186.52,38.01]
[1762015747595,6.11750025,186.59,186.53,1.51]
[1762015747798,2.89,186.58,186.53,1.51]
[1762015749196,2.89,186.58,186.5,1.51]
[1762015749401,3.22750025,186.59,186.5,1.51]
[1762015749602,2.89,186.61,186.5,1.51]
[1762015762209,2.93,186.65,186.5,1.51]
[1762015762624,2.93,186.65,186.56,1.51]
[1762015764509,2.93,186.64,186.56,1.51]
[1762015766813,2.93,186.67,186.56,1.51]
[1762015774618,3.22750025,186.64,186.56,1.51]
[1762015774922,2.93,186.63,186.56,1.51]
[1762015778725,3.22750025,186.64,186.56,1.51]
[1762015779124,2.7,186.66,186.59,4.8249]
[1762015779315,2.7,186.7,186.6,1.5]
[1762015780531,2.7,186.7,186.62,1.5]
[1762015781918,2.7,186.7,186.63,9.34319449]
[1762015782127,2.7,186.7,186.64,1.5]
[1762015785417,3.22750025,186.71,186.64,1.5]
[1762015785718,3.22750025,186.75,186.64,1.5]
[1762015786118,5.92750025,186.75,186.64,1.5]
[1762015787121,5.92750025,186.75,186.66,1.5]
[1762015787323,3.22750025,186.75,186.66,1.5]
[1762015787525,2.7,186.74,186.66,1.5]
[1762015792630,3.22750025,186.75,186.66,1.5]
[1762015795830,5.92750025,186.75,186.66,1.5]
[1762015797632,2.7,186.78,186.66,1.5]
[1762015797932,3.22750025,186.79,186.7,1.5]
[1762015798134,4.97321005,186.85,186.7,1.5]
[1762015798135,2.7,186.82,186.7,1.5]
[1762015799335,2.06540013,186.78,186.7,1.5]
[1762015799632,2.7,186.79,186.7,1.5]
[1762015799824,4.76540013,186.79,186.7,1.5]
[1762015800839,2.7,186.78,186.7,1.5]
[1762015803439,2.7,186.78,186.71,1.5]
[1762015804641,2.7,186.72,186.68,1.5]
[1762015805942,2.7,186.72,186.65,1.5]
[1762015807342,5.01540013,186.7,186.65,1.5]
[1762015808441,2.06540013,186.7,186.65,1.5]
[1762015808635,2.95,186.69,186.65,1.5]
[1762015810851,5.01540013,186.72,186.65,1.5]
[1762015811546,2.95,186.71,186.65,1.5]
[1762015813150,2.95,186.71,186.63,9.34319449]
[1762015813350,2.95,186.71,186.64,76.06]
[1762015815449,2.95,186.68,186.64,76.06]
[1762015816650,5.01540013,186.71,186.65,1.5]
[1762015817048,2.95,186.7,186.65,1.5]
[1762015819051,2.95,186.7,186.64,76.06]
[1762015819851,2.95,186.67,186.64,76.06]
[1762015822853,2.83,186.7,186.65,1.5]
[1762015824954,2.83,186.7,186.64,76.06]
[1762015826152,2.83,186.7,186.65,1.5]
[1762015829254,2.83,186.7,186.64,76.06]
[1762015831661,2.83,186.7,186.64,77.56]
[1762015835459,4.89540013,186.7,186.64,77.56]
[1762015836267,2.83,186.7,186.64,77.56]
[1762015837462,2.76,186.68,186.65,76.06]
[1762015839667,2.76,186.68,186.65,77.57]
[1762015839865,2.76,186.71,186.66,1.51]
[1762015845073,4.97656673,186.73,186.66,1.51]
[1762015846680,2.76,186.74,186.66,1.51]
[1762015850484,2.76,186.73,186.66,1.51]
[1762015852286,2.76,186.73,186.67,76.04]
[1762015852979,7.73656673,186.73,186.67,76.04]
[1762015853284,2.76,186.72,186.67,76.04]
[1762015853689,2.76,186.72,186.67,77.55]
[1762015855489,2.76,186.72,186.68,1.51]
[1762015861090,6.64087226,186.75,186.7,1.51]
[1762015861396,9.37541534,186.78,186.74,1.51]
[1762015861694,9.37541534,186.78,186.76,1.51]
[1762015863588,2.76,186.84,186.76,1.51]
[1762015864492,2.76,186.84,186.77,21.92]
[1762015864694,2.76,186.84,186.77,23.43]
[1762015865602,2.76,186.84,186.78,1.51]
[1762015879911,2.76,186.84,186.77,21.92]
[1762015880212,2.76,186.84,186.77,23.41]
[1762015880814,2.76,186.84,186.78,1.51]
[1762015884519,2.94,186.9,186.78,1.51]
[1762015885012,2.94,186.9,186.8,4.8192]
[1762015885211,2.94,186.9,186.81,1.51]
[1762015886316,2.94,186.95,186.81,1.51]
[1762015893316,2.94,186.95,186.83,1.51]
[1762015897513,2.94,186.95,186.85,1.5]
[1762015899220,2.94,186.95,186.87,1.5]
[1762015900621,2.89,187.02,186.87,1.5]
[1762015900919,2.89,187.02,186.89,1.5]
[1762015904822,2.89,187.02,186.9,1.5]
[1762015905325,2.89,187.02,186.92,1.5]
[1762015905523,2.89,187.02,186.93,1.5]
[1762015927428,2.89,187.02,186.95,2.0603187]
[1762015927635,2.89,187.02,186.96,1.5]
[1762015931334,2.89,187.02,186.93,62.7003187]
[1762015931537,2.89,187.02,186.94,1.5]
[1762015933039,2.89,187.02,186.93,2.0603187]
[1762015933230,2.83,187.01,186.91,3.5603187]
[1762015933835,2.83,187.01,186.91,2.0603187]
[1762015934139,2.83,187.01,186.91,3.5603187]
[1762015936142,2.83,187.01,186.94,3.5603187]
[1762015937539,2.83,187.01,186.94,2.0603187]
[1762015937731,2.83,187.01,186.95,1.5]
[1762015941459,2.83,187.01,186.98,1.5]
[1762015941751,2.83,187.01,186.97,2.0603187]
[1762015941752,2.83,187.01,186.97,3.5603187]
[1762015946452,2.83,187.01,186.98,1.5]
[1762015947352,2.83,187.01,186.94,1.5]
[1762015947551,2.83,187.01,186.92,8.52726159]
[1762015949355,2.83,187.01,186.93,4.96694289]
[1762015950355,2.83,187.01,186.93,6.46694289]
[1762015951357,2.83,187.01,186.94,1.5]
[1762015951656,2.83,187.01,186.95,3.5603187]
[1762015954461,2.83,187.01,186.96,1.5]
[1762015954660,2.83,187.01,186.95,2.0603187]
[1762015955160,2.83,187.01,186.95,3.5603187]
[1762015956056,2.83,187.01,186.96,1.5]
[1762015970871,2.83,187.01,186.94,4.8156]
[1762015970872,2.84,187.01,186.94,1.5]
[1762015971175,2.84,187.01,186.93,4.96694289]
[1762015971574,2.84,186.99,186.93,4.96694289]
[1762015973585,2.84,186.98,186.93,4.96694289]
[1762015974179,2.84,186.98,186.93,6.46694289]
[1762015976087,2.84,186.98,186.93,4.96694289]
[1762015976585,2.84,186.98,186.9,1.5]
[1762015981789,2.84,186.98,186.89,4.96694289]
[1762015982494,2.84,186.98,186.9,1.5]
[1762015983295,2.84,186.98,186.89,4.96694289]
[1762015983992,2.84,186.98,186.89,6.46694289]
[1762015984396,51.36,186.97,186.79,10.28775411]
[1762015984587,16.07,186.79,186.7,12.3200833]
[1762015984785,35.29,186.91,186.55,4.8258]
[1762015984786,3.22125563,186.71,186.55,4.8258]
[1762015984982,3.22125563,186.64,186.57,2.9]
[1762015985397,3.22125563,186.66,186.57,2.9]
[1762015985789,3.22125563,186.66,186.6,2.9]
[1762015986291,3.22125563,186.71,186.6,2.9]
[1762015986497,3.22125563,186.73,186.63,45.35757977]
[1762015989299,3.22125563,186.73,186.64,2.92]
[1762015989300,1e-08,186.65,186.64,2.92]
[1762016006502,9.93993869,186.69,186.64,2.92]
[1762016007107,9.93993869,186.69,186.63,9.34319449]
[1762016007313,3.22125563,186.68,186.63,9.34319449]
[1762016008114,9.93993869,186.69,186.63,9.34319449]
[1762016009712,9.93993869,186.69,186.63,12.07319449]
[1762016009918,9.93993869,186.69,186.64,2.73]
[1762016012322,9.93993869,186.7,186.64,2.73]
[1762016019121,14.46676049,186.69,186.64,2.73]
[1762016021622,5.3847599,186.65,186.63,7.85580542]
[1762016023728,5.3847599,186.65,186.64,2.69]
[1762016024127,1.26,186.7,186.64,2.69]
[1762016026330,4.48125563,186.7,186.64,2.69]
[1762016027128,5.70828811,186.69,186.64,2.69]
[1762016029825,5.70828811,186.69,186.63,7.85580542]
[1762016029826,1.26,186.68,186.63,3.03220542]
[1762016030131,1.26,186.65,186.63,3.03220542]
[1762016032432,4.44828811,186.64,186.63,3.03220542]
[1762016035630,4.44828811,186.64,186.63,5.72220542]
[1762016041141,9.44831761,186.64,186.63,5.72220542]
[1762016044340,10.70831761,186.64,186.63,3.03220542]
[1762016045346,12.77695601,186.64,186.63,3.03220542]
[1762016047843,7.77692651,186.64,186.63,3.03220542]
[1762016048049,14.44363252,186.64,186.63,3.03220542]
[1762016053152,1.25,186.63,186.59,2.69]
[1762016054253,1.25,186.63,186.57,23.9051]
[1762016054655,1.25,186.63,186.57,26.7751]
[1762016054853,1.25,186.63,186.57,23.9051]
[1762016055057,1.25,186.63,186.58,2.87]
[1762016055758,4.99688658,186.61,186.58,2.87]
[1762016056958,6.24688658,186.61,186.58,2.87]
[1762016061161,4.44828811,186.6,186.58,2.87]
[1762016061552,1.26,186.59,186.55,2.73]
[1762016063665,4.44828811,186.6,186.55,2.73]
[1762016064968,4.44828811,186.6,186.56,2.73]
[1762016067366,4.44828811,186.59,186.56,2.73]
[1762016068166,4.44828811,186.59,186.57,2.73]
[1762016071774,4.44828811,186.58,186.57,2.73]
[1762016076071,4.44828811,186.58,186.57,3.81]
[1762016087176,3.3286384,186.63,186.58,4.8249]
[1762016087382,1.26,186.62,186.59,2.91]
[1762016089679,6.25688658,186.64,186.59,7.7346]
[1762016089978,4.99688658,186.64,186.6,2.91]
[1762016090380,6.25688658,186.64,186.6,2.91]
[1762016090980,6.25688658,186.64,186.61,2.91]
[1762016091179,6.25688658,186.64,186.62,67.82]
[1762016091480,1.26,186.63,186.61,77.18]
[1762016091673,3.3286384,186.63,186.61,77.18]
[1762016091877,1.26,186.62,186.61,77.18]
[1762016093579,3.92707202,186.63,186.61,80.09]
[1762016094479,5.18707202,186.63,186.61,80.09]
[1762016094680,5.18707202,186.63,186.61,77.18]
[1762016096084,1.26,186.62,186.61,77.18]
[1762016096884,5.18707202,186.62,186.61,77.18]
[1762016097183,3.92707202,186.62,186.61,80.09]
[1762016097884,3.92707202,186.62,186.61,77.18]
[1762016098485,5.18707202,186.62,186.61,77.18]
[1762016099786,3.92707202,186.62,186.61,77.18]
[1762016100186,3.92707202,186.62,186.61,80.09]
[1762016100984,5.18707202,186.62,186.58,2.91]
[1762016101186,3.92707202,186.62,186.59,79.95]
[1762016101390,5.18707202,186.62,186.6,2.91]
[1762016101686,3.92707202,186.62,186.6,2.91]
[1762016102084,5.18707202,186.62,186.59,77.04]
[1762016102290,3.92707202,186.62,186.6,79.93]
[1762016102484,5.18707202,186.62,186.6,79.93]
[1762016102789,1.26,186.61,186.57,2.91]
[1762016103188,1.26,186.61,186.58,77.02]
[1762016104491,1.26,186.61,186.58,79.93]
[1762016108687,3.92707202,186.6,186.58,79.93]
[1762016109192,1.26,186.59,186.58,77.02]
[1762016110990,3.92707202,186.6,186.59,2.92]
[1762016120805,5.18707202,186.6,186.56,2.85]
[1762016121007,5.18707202,186.6,186.57,79.71]
[1762016122006,1.26,186.6,186.57,79.71]
[1762016123606,1.26,186.6,186.55,4.8259]
[1762016123806,1.26,186.6,186.56,72.31]
[1762016124108,1.26,186.6,186.57,2.85]
[1762016129709,1.26,186.6,186.56,74.2855]
[1762016129912,1.26,186.6,186.57,2.85]
[1762016132208,6.25688658,186.62,186.57,2.85]
[1762016132510,1.26,186.61,186.57,2.85]
[1762016133011,4.29118175,186.6,186.57,2.85]
[1762016133407,5.55118175,186.6,186.57,2.85]
[1762016135112,4.29118175,186.6,186.58,2.85]
[1762016135611,5.55118175,186.6,186.59,76.72]
[1762016135814,1.26,186.59,186.56,2.85]
[1762016136116,1.26,186.59,186.57,76.74]
[1762016136812,4.29118175,186.58,186.57,76.74]
[1762016137209,1.26,186.57,186.54,0.93251336]
[1762016137408,1.26,186.57,186.53,63.86]
[1762016139016,1.26,186.56,186.53,63.86]
[1762016140313,1.26,186.56,186.53,66.67]
[1762016140516,4.29118175,186.55,186.53,66.67]
[1762016142218,4.29118175,186.54,186.53,66.67]
[1762016148615,4.29118175,186.54,186.53,63.86]
[1762016148822,4.29118175,186.54,186.53,66.67]
[1762016149525,4.29118175,186.54,186.53,2.81]
[1762016149924,4.29118175,186.54,186.52,79.49]
[1762016150525,4.29118175,186.54,186.53,2.81]
[1762016151430,6.25688658,186.6,186.53,2.81]
[1762016151829,1.26,186.59,186.53,2.81]
[1762016154331,5.5417636,186.58,186.53,2.81]
[1762016157133,4.2817636,186.57,186.53,2.81]
[1762016159033,1.26,186.61,186.53,2.81]
[1762016159935,1.26,186.61,186.54,4.8259]
[1762016160138,1.26,186.61,186.55,2.81]
[1762016161148,1.26,186.61,186.51,2.81]
[1762016161446,1.26,186.61,186.52,66.34]
[1762016162248,1.26,186.59,186.52,66.34]
[1762016163551,1.26,186.59,186.51,7.6367]
[1762016163748,1.26,186.59,186.52,76.68]